Cogmind - Beta 12 @@@ ROGUE MODE // 2023.05.14 @ 15:13:25 Player: Anbaraen Result: Destroyed by exploding Fusion Modulator Performance ------------- Evolutions (1) 500 Regions Visited (2) 400 Robots Destroyed (22) 110 Value Destroyed (484) 484 Prototype IDs (2) 40 Alien Tech Used (0) 0 Bonus (200) 200 TOTAL SCORE: 1734 Bonus ------- Pacifist 200 Cogmind --------- Core Integrity 0/400 Matter 300/300 Energy 5/250 System Corruption 9% Temperature Cool (30) Movement Walking (330) Ox3 Location -9/Materials Parts ------- > --- POWER (1) -------- Ion Engine > --- PROPULSION (3) --- Aluminum Leg > --- UTILITY (3) ------ Large Storage Unit > --- WEAPON (2) ------- Light EM Pulse Cannon Maul > --- INVENTORY (15) --- Ion Engine Heavy Ion Engine Heavy Ion Engine Heavy Ion Engine Large Storage Unit Light Armor Plating Assault Rifle Peak State ------------ > --- POWER ------------ Reinforced Ion Engine > --- PROPULSION ------- Light Treads Light Treads Wheel > --- UTILITY ---------- Large Storage Unit Improved Targeting Computer Improved Targeting Computer > --- WEAPON ----------- Heavy Assault Rifle Maul > --- INVENTORY -------- Ion Engine Ion Engine Heavy Ion Engine Heavy Ion Engine Heavy Ion Engine Aluminum Leg Large Storage Unit Light Armor Plating Assault Rifle [Rating: 15] Favorites ----------- Power Ion Engine Engine Ion Engine Propulsion Aluminum Leg Treads Light Treads Leg Aluminum Leg Wheel Wheel Utility Improved Targeting Computer Storage Large Storage Unit Processor Improved Targeting Computer Weapon Assault Rifle Energy Cannon Light EM Pulse Cannon Ballistic Gun Assault Rifle Impact Weapon Maul Build | -11 -10 -9 ------- Run | Jun Mat Mat Slots Evolved 2 | . . 2 Power . | . . . Propulsion 1 | . . 1 Utility 1 | . . 1 Weapon . | . . . Parts Attached 32 | . 4 28 Power 6 | . . 6 Engine 6 | . . 6 Core . | . . . Reactor . | . . . Propulsion 13 | . . 13 Treads 5 | . . 5 Leg 6 | . . 6 Wheel 2 | . . 2 Hover . | . . . Flight . | . . . Utility 5 | . 2 3 Device . | . . . Storage 3 | . 2 1 Processor 2 | . . 2 Hackware . | . . . Protection . | . . . Artifact . | . . . Weapon 8 | . 2 6 Energy Gun . | . . . Energy Cannon 1 | . . 1 Ballistic Gun 6 | . 2 4 Ballistic Cannon . | . . . Launcher . | . . . Special Weapon . | . . . Impact Weapon 1 | . . 1 Slashing Weapon . | . . . Piercing Weapon . | . . . Special Melee Weapon . | . . . Unidentified Prototypes 2 | . . 2 Parts Lost 16 | . . 16 Power 2 | . . 2 Propulsion 8 | . . 8 Utility 2 | . . 2 Weapon 4 | . . 4 Highest Loss Streak 5 | . . 5 To Critical Strikes . | . . . Average Slot Usage (%) 89 | . 99 86 Engine 11 | . 14 10 Treads 9 | . . 11 Leg 14 | . 28 10 Wheel 6 | . . 7 Storage 14 | . 27 11 Processor 12 | . . 16 Ballistic Gun 16 | . 28 13 Impact Weapon 3 | . . 4 Naked Turns . | . . . Heaviest Build 36 | 13 29 36 Greatest Support 40 | 20 20 40 Greatest Overweight (x) 3 | . 1 3 Average Overweight (x) . | . . . Largest Inventory Capacity 15 | . 10 15 Average Capacity 13 | . 9 14 Most Carried 11 | . 9 11 Average Carried 7 | . 7 8 Final Capacity 15 | 8 10 15 Final Carried 9 | 6 9 7 Class Distribution -------------------- 100% | Mutant Dominant Class ---------------- Mutant | -10/Materials Mutant | -9/Materials Resources | -11 -10 -9 ----------- Run | Jun Mat Mat Matter Collected 689 | 200 . 489 Remotely . | . . . Salvage Created 680 | . . 680 Parts 32 | . . 32 Haulers Intercepted 2 | . . 2 Recyclers Shooed . | . . . Parts Field Recycled . | . . . Retrieved Matter . | . . . Parts Self-Destructed . | . . . Prevented . | . . . Kills | -11 -10 -9 ------- Run | Jun Mat Mat Combat Hostiles Destroyed 16 | . . 16 Melee 4 | . . 4 Guns 8 | . . 8 Cannons 3 | . . 3 Classes Destroyed 10 | . . 10 Builder 1 | . . 1 Hauler 2 | . . 2 Recycler 1 | . . 1 Operator 1 | . . 1 Watcher 1 | . . 1 Swarmer 6 | . . 6 Grunt 6 | . . 6 Brawler 1 | . . 1 Duelist 1 | . . 1 Sentry 2 | . . 2 Best Kill Streak 3 | . . 3 Combat Bots Only 3 | . . 3 Max Kills in Single Turn 1 | . . 1 Gunslinging . | . . . Exploded . | . . . Melee 1 | . . 1 Uniques/NPCs Destroyed . | . . . Combat | -11 -10 -9 -------- Run | Jun Mat Mat Damage Taken 2449 | . . 2449 Core 475 | . . 475 Absorbed by Shields . | . . . Core Remaining (%) 100 | 100 100 . Volleys Fired 65 | . 2 63 Largest 2 | . 2 2 Hottest 56 | . 40 56 Shots Fired 106 | . 4 102 Gun 104 | . 4 100 Cannon 2 | . . 2 Launcher . | . . . Special . | . . . Kinetic 104 | . 4 100 Thermal . | . . . Explosive . | . . . Electromagnetic 2 | . . 2 Robot Hit Streak 29 | . 1 29 Robot Miss Streak 5 | . 1 5 Penetration Max . | . . . Secondary Targets 3 | . . 3 Max Gunslinging Chain 1 | . . 1 Shots Hit Robots 106 | . 2 104 Core Hits 27 | . . 27 Critical Kills 1 | . . 1 Critical Parts Destroyed 3 | . . 3 Critical Strikes 4 | . . 4 Smash 4 | . . 4 Melee Attacks 30 | . . 30 Impact 30 | . . 30 Slashing . | . . . Piercing . | . . . Sneak Attacks 4 | . . 4 Combat Hostiles . | . . . Follow-up Attacks . | . . . Damage Inflicted 1930 | . 25 1905 Guns 944 | . 25 919 Cannons 47 | . . 47 Explosions . | . . . Melee 939 | . . 939 Ramming . | . . . Kinetic 944 | . 25 919 Thermal . | . . . Explosive . | . . . Electromagnetic 47 | . . 47 Impact 939 | . . 939 Slashing . | . . . Piercing . | . . . Highest Corruption 9 | . . 9 Average Corruption 8 | . . 8 Corruption Purged . | . . . Corruption Blocked . | . . . Effects 5 | . . 5 Message Errors 1 | . . 1 Data Loss (minor) 2 | . . 2 Data Loss (major) 1 | . . 1 Alerts 1 | . . 1 Overload Shots . | . . . Overflow Damage 345 | . . 345 Projectiles . | . . . Explosions . | . . . Melee 345 | . . 345 Knockbacks 6 | . . 6 Impact 4 | . . 4 Kinetic . | . . . Secondary 2 | . . 2 Self-Inflicted Damage . | . . . Shots . | . . . Rammed . | . . . Targets Rammed . | . . . Kicked . | . . . Crushed . | . . . Highest Temperature 12 | . . 12 Average Temperature 5 | . . 5 Received Heat Transfer 429 | . . 429 Siege Activations . | . . . Robots Corrupted . | . . . Combat Hostiles . | . . . Parts Fried 3 | . . 3 Impact Corruptions 13 | . . 13 Robots Melted . | . . . Combat Hostiles . | . . . Parts Melted . | . . . Heat Transferred . | . . . Parts Sabotaged . | . . . Parts Stolen . | . . . Parts Stripped . | . . . Power Chain Reactions . | . . . Missiles Intercepted . | . . . Alert | -11 -10 -9 ------- Run | Jun Mat Mat Peak Influence 236 | . 12 236 Initial 4 | . . 4 Average 78 | . 4 99 Maximum Alert Level 1 | . . 1 Low Security (%) 90 | . 100 87 Level 1 9 | . . 12 Level 2 . | . . . Level 3 . | . . . Level 4 . | . . . Level 5 . | . . . High Security . | . . . Max Security . | . . . Squads Dispatched 3 | . . 3 Investigation 1 | . . 1 Extermination . | . . . Reinforcement 2 | . . 2 Assault . | . . . Garrison . | . . . Intercept . | . . . Searches Triggered . | . . . Construction Impeded . | . . . Haulers Reinforced . | . . . Active Scanning Responses . | . . . Cargo Convoy Interrupts . | . . . Stealth | -11 -10 -9 --------- Run | Jun Mat Mat Distress Signals 6 | . . 6 Communications Jammed . | . . . Distress Signals . | . . . Times Spotted 32 | . 3 29 Peak Tracking Total 7 | . 3 7 Tactical Retreats 2 | . . 2 Traps | -11 -10 -9 ------- Run | Jun Mat Mat Traps Triggered 1 | . . 1 Indirectly . | . . . Trap Hack Attempts . | . . . Triggered . | . . . Disarmed . | . . . Reprogrammed . | . . . Reused . | . . . Traps Extracted . | . . . Installed . | . . . Triggered . | . . . Machines | -11 -10 -9 ---------- Run | Jun Mat Mat Machines Disabled . | . . . Max in Single Turn . | . . . Machines Repaired . | . . . Machines Sabotaged . | . . . Overloaded Fab Kills . | . . . Hacking | -11 -10 -9 --------- Run | Jun Mat Mat Machines Accessed 4 | . 2 2 Terminals 1 | . 1 . Fabricators . | . . . Repair Stations . | . . . Recycling Units 2 | . 1 1 Scanalyzers 1 | . . 1 Garrison Access . | . . . Total Hacks 9 | . 5 4 Successful 8 | . 4 4 Failed 1 | . 1 . Catastrophic . | . . . Database Lockouts . | . . . Manual . | . . . Terminals 3 | . 3 . Fabricators . | . . . Repair Stations . | . . . Recycling Units 4 | . 2 2 Scanalyzers 2 | . . 2 Garrison Access . | . . . Terminal Hacks 3 | . 3 . Record 1 | . 1 . Terminal Index 1 | . 1 . Patrol Status 1 | . 1 . Fabricator Hacks . | . . . Repair Station Hacks . | . . . Recycling Unit Hacks 3 | . 1 2 Process 1 | . 1 . Report Inventory 1 | . . 1 Retrieve Matter 1 | . . 1 Scanalyzer 2 | . . 2 Insert Component 1 | . . 1 Analyze 1 | . . 1 Garrison Access Hacks . | . . . Unauthorized Hacks . | . . . Terminals . | . . . Fabricators . | . . . Repair Stations . | . . . Recycling Units . | . . . Scanalyzers . | . . . Garrison Access . | . . . Data Cores Recovered . | . . . Used . | . . . Hacking Detections 1 | . . 1 Full Trace Events . | . . . Feedback Events . | . . . Feedback Blocked . | . . . Robot Schematics Acquired . | . . . Robots Built . | . . . Authchips . | . . . Time . | . . . Total Robot Build Rating . | . . . Part Schematics Acquired 1 | . . 1 Parts Built . | . . . Authchips . | . . . Time . | . . . Total Part Build Rating . | . . . Parts Repaired . | . . . Time . | . . . Parts Recycled . | . . . Recycled Matter 48 | . 48 . Retrieved Matter 14 | . . 14 Retrieved Components . | . . . Parts Scanalyzed 1 | . . 1 Part Schematics Acquired 1 | . . 1 Parts Damaged . | . . . Bothacking | -11 -10 -9 ------------ Run | Jun Mat Mat Used RIF Installer . | . . . Robots Hacked . | . . . Non-combat . | . . . Combat . | . . . Robot Hacks Applied . | . . . Relay Couplers Released . | . . . Fabnet Peak Effective % . | . . . Robots Rewired . | . . . Allies Hacked . | . . . Hacks Repelled . | . . . Allies | -11 -10 -9 -------- Run | Jun Mat Mat Total Allies . | . . . Largest Group . | . . . Highest-Rated Group . | . . . Highest-Rated Ally . | . . . Total Orders . | . . . Ally Attacks . | . . . Total Damage . | . . . Kills . | . . . Allies Corrupted . | . . . Allies Melted . | . . . Intel | -11 -10 -9 ------- Run | Jun Mat Mat Robot Analysis Total . | . . . Derelict Logs Recovered . | . . . Drone Launches . | . . . Drone Recoveries . | . . . Exploration | -11 -10 -9 ------------- Run | Jun Mat Mat Turns Passed 1044 | . 227 817 Spaces Moved 376 | 1 115 260 Core . | . . . Treads 160 | . . 160 Legs 216 | 1 115 100 Wheels . | . . . Hover . | . . . Flight . | . . . Fastest Speed 120 | 120 120 120 Average Speed 183 | 120 185 182 Slowest Speed 330 | 120 190 330 Overloaded Moves . | . . . Propulsion Burnouts . | . . . Robots Hopped . | . . . Cave-ins Triggered . | . . . Exploration Rate (%) 18 | 2 28 24 Regions Visited 2 Branch Regions . Pre-discovered Areas . | . . . Known Exits Taken . | . . . Unknown Exits Taken 2 | 1 1 . Scrap Searched . | . . . Spaces Dug 2 | . . 2 Terrain Destroyed 2 | . . 2 Melee 2 | . . 2 Projectile . | . . . AOE . | . . . Terrain Rammed . | . . . Walls Destroyed . | . . . Machines Disabled . | . . . Actions | -11 -10 -9 --------- Run | Jun Mat Mat Total 570 | . 125 445 Wait 36 | . . 36 Move 374 | . 114 260 Hop . | . . . Pick Up 25 | . 4 21 Fast Attach 1 | . 1 . Attach 19 | . 1 18 Detach . | . . . Swap 12 | . 2 10 Drop 8 | . 1 7 Fire 65 | . 2 63 Melee 30 | . . 30 Ram . | . . . Kick . | . . . Crush . | . . . Escape Stasis . | . . . Rewire . | . . . Trap . | . . . Miscellaneous . | . . . Route ------- -11/Junkyard -10/Materials (discovered 2 exits: *Mat / [*Min]) -9/Materials History --------- Turn | Location | Event 1 | -11/Junkyard | Discovered new exit (range 0) 1 | -11/Junkyard | Entered Materials 164 | -10/Materials | Discovered new exit (range 8) 192 | -10/Materials | Discovered new exit (range 10) 228 | -10/Materials | Entered another Materials area 228 | -9/Materials | Evolved 2 slots: Propulsion x1, Utility x1 329 | -9/Materials | Build established: Mutant 538 | -9/Materials | Lost 5 parts (3n2w) 563 | -9/Materials | Core integrity fell below 50% 906 | -9/Materials | Core integrity fell below 20% 953 | -9/Materials | Lost 4 parts (1n2u1w) 1045 | -9/Materials | Destroyed by exploding Fusion Modulator Last Messages --------------- 00974_ ALERT: Alarm triggered, dispatching investigation squad. 00979_ U-05 Engineer lays Concrete. 00981_ E57>AIOLVKIJRAAQ 00987_ K-01 Serf cleans the Neutrino Reactor. 01007_ Wheel destroyed. 01010_ Aluminum Leg destroyed. 01012_ System corrupted: IFF burst signal emitted. 01015_ K-01 Serf cleans the Terminal. 01023_ Rnf. Ion Engine destroyed. 01026_ Sneak attack on O-16 Technician. 01026_ Destroyed Hover Unit. 01026_ Destroyed Datajack. 01026_ Destroyed Lgt. Ion Engine. 01026_ Destroyed Hacking Suite. 01026_ O-16 Technician system corrupted by crushing effect. 01027_ O-16 Technician system terminally corrupted. 01042_ G-34 Mercenary destroyed. 01045_ Fusion Modulator explodes. 01045_ Acquired 20 matter. 01045_ Fusion Modulator explodes. Map ----- +----------------------------------------------------+ | ????????????###/###???# #????????????? | | ??????????????# #?????# #????????????? | | ??????????????# #?????# #????????????? | | ??????????????# #?????# #????????????? | | ??????????##### ###???# """%""" #????????????? | | ?????????##! % #???# """%""" #????????????? | | ?????????#! = * #???# """ """ #????#???????? | | ?????????# ! #???# %% #?? #???????? | | ?????????#!! #???#####+##### #???????? | | ?????????#! #??????#%% / #???????? | | ?????????##! #??????# #### #???????? | | ?????######### ######## #????? #???????? | | ?????# #########???????? | | ?????# ] ######???? | | ?????# ][ ?? | | ?????# r """ ?? | | ?????####+### """ """ "T" ?? | | ??????? # """ """ #######??? | | ?????# # """ """ #????????? | | ?????# # #????????? | | ?????# = # ! ###??????? | | ?????# # k ###????? | | ?????# ! # [ w +???? | | ?????######## * Y ####???? | | ?????????????###;;;;;;;; ;## #??????? | | ??????????????#; = @ # #??????? | | ??????????????#; * # == #??????? | | ??????????????#; # == #??????? | | ??????????????#; # = ?????? | | ??????????????#; # ! ???? | | ??????????????## # ???? | | ???????????????# #######/######????? | | ???????????????###;;;;;#####?????? ?????????? | | ?????????????????##### ???????????" ????????? | | ?????????????????????? ?????????????????????? | | ?????????????????????? "?????????????????????? | | ?????????????????????? "?????????????????????? | | ?????????????????????? "?????????????????????? | | ?????????????????????? "?????????????????????? | | ?????????????????????? ??????????????????????? | | ?????????????????????? ??????????????????????? | | ?????????????????????????????????????????????? | | ?????????????????????????????????????????????? | | ?????????????????????????????????????????????? | | ?????????????????????????????????????????????? | | ?????????????????????????????????????????????? | | ?????????????????????????????????????????????? | | ?????????????????????????????????????????????? | | ?????????????????????????????????????????????? | | ?????????????????????????????????????????????? | +----------------------------------------------------+ Best States ------------- Heat Dissipation 28 Energy Generation 14 Energy Capacity 280 Matter Stores 300 Matter Capacity 300 Sight Range 16 Terrain Scan Density 10 Evasion (%) 45 Targeting Accuracy 12 Recoil Reduction 2 Item Schematics ----------------- Aluminum Leg | -9/Materials | Scanalyzed Robot Schematics ------------------ None Fabricated ------------ Nothing Alien Tech Used ----------------- None Achievements -------------- None Challenges ------------ None Game ------ Seed StasisBarrageUnit Manual? 0 Play Time 00:15:43 Cumulative 16.3 hours Start 2023.05.14 @ 15:01:06 End 2023.05.14 @ 15:13:25 Sessions 1 Manual Loads 0 Difficulty Rogue Special Mode None Game No. 39 Rogue 39 Adventurer 0 Explorer 0 Win Type - Total 0 Types 0/0/0/0/0/0/0/0/0 Lore% 11 Gallery% 26 Achievement% 21 Wizard Run 0 Options --------- ASCII 0 Keyboard 0 Movement Mouse Keybinds 0 Fullscreen 1 Font 24/Smallcaps Map View 76x50 Tactical HUD 1 Map Filters NONE Filters NONE Steam 1 RUN: b35170fe-7e65-45a2-ba7c-845caf01a365